bitfinex/quotes_BTCUSD_20250822
["timestamp","ask_amount","ask_price","bid_price","bid_amount"]
[1755823723133,0.66374395,112920.0,112910.0,0.037992]
[1755823723379,3.35027295,112920.0,112910.0,0.037992]
[1755823723628,0.16581395,112920.0,112910.0,0.037992]
[1755823723846,0.66581395,112920.0,112910.0,0.037992]
[1755823724101,3.35027295,112920.0,112910.0,0.037992]
[1755823724323,0.16374395,112920.0,112910.0,0.037992]
[1755823724550,3.35027295,112920.0,112910.0,0.037992]
[1755823724768,0.16374395,112920.0,112910.0,0.037992]
[1755823724990,0.66374395,112920.0,112910.0,0.037992]
[1755823725210,3.35027295,112920.0,112910.0,0.037992]
[1755823725430,0.16374395,112920.0,112910.0,0.037992]
[1755823725647,0.66374395,112920.0,112910.0,0.037992]
[1755823725874,5.38983417,112920.0,112910.0,0.037992]
[1755823726057,2.20330517,112920.0,112910.0,0.037992]
[1755823731578,2.20538517,112920.0,112910.0,0.037992]
[1755823732211,2.20330517,112920.0,112910.0,0.037992]
[1755823734129,2.20539517,112920.0,112910.0,0.035012]
[1755823734346,2.20539517,112920.0,112910.0,0.00837]
[1755823734992,2.20539517,112920.0,112910.0,0.01156]
[1755823735628,2.20539517,112920.0,112910.0,0.0064]
[1755823736059,2.20539517,112920.0,112910.0,0.01156]
[1755823736612,2.20539517,112920.0,112910.0,0.0064]
[1755823737074,4.90855469,112920.0,112900.0,0.034233]
[1755823737352,3.17533587,112910.0,112900.0,0.034233]
[1755823737521,0.48880687,112910.0,112900.0,0.036203]
[1755823738326,0.48880687,112910.0,112900.0,0.038203]
[1755823738505,0.48885506,112910.0,112900.0,0.038203]
[1755823738858,0.49083506,112910.0,112900.0,0.036203]
[1755823739295,2.19443941,112910.0,112890.0,0.2671]
[1755823739512,0.48876687,112900.0,112890.0,0.27029]
[1755823739721,2.19039122,112900.0,112890.0,0.00556]
[1755823740840,2.19139122,112900.0,112890.0,0.00656]
[1755823741300,2.19139122,112900.0,112890.0,0.00756]
[1755823741737,2.19139122,112900.0,112890.0,0.00656]
[1755823741967,2.19239122,112900.0,112890.0,0.00756]
[1755823742409,2.20625747,112900.0,112890.0,0.00756]
[1755823742606,2.70625747,112900.0,112890.0,0.00756]
[1755823742827,2.70625747,112900.0,112890.0,0.00437]
[1755823743051,2.70625747,112900.0,112890.0,0.0024]
[1755823743256,2.70625747,112900.0,112890.0,0.00559]
[1755823743469,2.70625747,112900.0,112890.0,0.00756]
[1755823746947,2.20625747,112900.0,112890.0,0.00756]
[1755823747382,2.20625747,112900.0,112890.0,0.00437]
[1755823747607,2.20625747,112900.0,112890.0,0.0024]
[1755823748693,2.27441747,112900.0,112890.0,0.0024]
[1755823753864,4.96389647,112900.0,112880.0,0.0004]
[1755823754077,4.87497022,112890.0,112880.0,0.0004]
[1755823754293,2.19044122,112890.0,112880.0,0.0004]
[1755823754501,2.19044122,112890.0,112880.0,0.00556]
[1755823755197,2.19044122,112890.0,112880.0,0.00656]
[1755823756137,2.19044122,112890.0,112880.0,0.00956]
[1755823756338,2.19044122,112890.0,112880.0,0.00656]
[1755823756548,2.19144122,112890.0,112880.0,0.00956]
[1755823756999,2.19144122,112890.0,112880.0,0.0044]
[1755823757186,2.19144122,112890.0,112880.0,0.00761]
[1755823757407,2.19144122,112890.0,112880.0,0.00877]
[1755823757628,1.16966061,112890.0,112880.0,0.00877]
[1755823757848,1.17066061,112890.0,112880.0,0.00877]
[1755823758737,1.17264061,112890.0,112880.0,0.00877]
[1755823758982,2.19242122,112890.0,112880.0,0.00877]
[1755823760090,2.04354122,112890.0,112880.0,0.00877]
[1755823760309,1.17066061,112890.0,112880.0,0.00877]
[1755823761085,2.19044122,112890.0,112880.0,0.00877]
[1755823761509,2.0164492,112890.0,112880.0,0.00877]
[1755823761720,1.17066061,112890.0,112880.0,0.00877]
[1755823762354,2.19044122,112890.0,112880.0,0.00877]
[1755823764055,2.19252122,112890.0,112880.0,0.00877]
[1755823764495,2.19252122,112890.0,112880.0,0.0034]
[1755823766400,2.19252122,112890.0,112880.0,0.00661]
[1755823768064,2.19252122,112890.0,112880.0,0.0034]
[1755823768274,2.19252122,112890.0,112880.0,0.00877]
[1755823768491,1.02178061,112890.0,112880.0,0.00877]
[1755823768702,1.17066061,112890.0,112880.0,0.00877]
[1755823770098,1.17264061,112890.0,112880.0,0.00877]
[1755823770519,0.83071374,112890.0,112880.0,0.00877]
[1755823770729,1.16866061,112890.0,112880.0,0.00877]
[1755823771534,1.17062061,112890.0,112880.0,0.00877]
[1755823772454,1.17062061,112890.0,112880.0,0.00556]
[1755823772713,1.17062061,112890.0,112880.0,0.00877]
[1755823773048,1.02174061,112890.0,112880.0,0.00877]
[1755823773254,1.17062061,112890.0,112880.0,0.00877]
[1755823774082,0.15084,112890.0,112880.0,0.00877]
[1755823774298,1.17062061,112890.0,112880.0,0.00877]
[1755823774707,1.17062061,112890.0,112880.0,0.00556]
[1755823774891,1.17062061,112890.0,112880.0,0.00877]
[1755823775247,1.17086061,112890.0,112880.0,0.00877]
[1755823775689,0.99829705,112890.0,112880.0,0.00877]
[1755823777214,0.99992705,112890.0,112880.0,0.00877]
[1755823777569,0.99821705,112890.0,112880.0,0.00877]
[1755823782693,0.99984705,112890.0,112880.0,0.00877]
[1755823783155,0.99984705,112890.0,112880.0,0.0034]
[1755823783378,0.83052374,112890.0,112880.0,0.0034]
[1755823788247,1.17045061,112890.0,112880.0,0.0034]
[1755823788452,1.17147061,112890.0,112880.0,0.0034]
[1755823788743,4.95482725,112890.0,112880.0,0.0034]
[1755823788923,3.93504664,112890.0,112880.0,0.0034]
[1755823789408,3.93504664,112890.0,112880.0,0.0004]
[1755823789618,4.95582725,112890.0,112880.0,0.0014]
[1755823789813,3.93704664,112890.0,112880.0,0.0024]
[1755823789988,3.93604664,112890.0,112880.0,0.0014]
[1755823790187,4.95482725,112890.0,112880.0,0.0004]
[1755823790363,4.94749693,112890.0,112880.0,0.0014]
[1755823790707,4.95581844,112890.0,112880.0,0.0014]
[1755823791266,3.93603783,112890.0,112880.0,0.0014]
[1755823791663,3.93703783,112890.0,112880.0,0.0024]
[1755823792268,3.9509071,112890.0,112880.0,0.0024]
[1755823793042,5.14785132,112890.0,112880.0,0.0024]
[1755823793303,5.17179481,112890.0,112880.0,0.0024]
[1755823793544,5.17177703,112890.0,112880.0,0.0024]
[1755823794883,5.20367593,112890.0,112880.0,0.0024]
[1755823795255,5.66035613,112890.0,112880.0,0.0024]
[1755823796050,5.69225503,112890.0,112880.0,0.0024]
[1755823796526,5.69224065,112890.0,112880.0,0.0024]
[1755823797491,6.19224065,112890.0,112880.0,0.0024]
[1755823798355,6.16034175,112890.0,112880.0,0.0024]
[1755823798969,6.1603122,112890.0,112880.0,0.0024]
[1755823799451,0.33992687,112880.0,112870.0,0.0004]
[1755823799630,3.22569838,112880.0,112870.0,0.0004]
[1755823799840,3.20550698,112880.0,112870.0,0.0004]
[1755823800050,3.22833279,112880.0,112870.0,0.0004]
[1755823800262,3.23188679,112880.0,112870.0,0.0004]
[1755823800470,3.23188563,112880.0,112870.0,0.0004]
[1755823801912,3.23388563,112880.0,112870.0,0.0024]
[1755823802089,3.23388453,112880.0,112870.0,0.0024]
[1755823802711,3.23188453,112880.0,112870.0,0.0004]
[1755823802918,3.23286453,112880.0,112870.0,0.0014]
[1755823803129,3.23486453,112880.0,112870.0,0.0014]
[1755823803336,3.23486453,112880.0,112870.0,0.0004]
[1755823803556,3.23586453,112880.0,112870.0,0.0014]
[1755823803763,4.93249888,112880.0,112870.0,0.0004]
[1755823804642,4.93049888,112880.0,112870.0,0.0004]
[1755823805042,4.92986888,112880.0,112870.0,0.00559]
[1755823805247,4.78094888,112880.0,112870.0,0.00559]
[1755823805453,4.92886888,112880.0,112870.0,0.00559]
[1755823805687,4.77994888,112880.0,112870.0,0.00559]
[1755823805902,4.92356829,112880.0,112870.0,0.00659]
[1755823806123,4.92256829,112880.0,112870.0,0.00559]
[1755823806549,4.92356829,112880.0,112870.0,0.00659]
[1755823807629,4.92393829,112880.0,112870.0,0.00659]
[1755823807850,4.92393829,112880.0,112870.0,0.0014]
[1755823808030,4.93223366,112880.0,112870.0,0.0014]
[1755823808268,4.9156298,112880.0,112870.0,0.0014]
[1755823808494,4.9322213,112880.0,112870.0,0.0014]
[1755823809095,4.93222175,112880.0,112870.0,0.0014]
[1755823809466,4.93222175,112880.0,112870.0,0.00659]
[1755823810461,4.93222175,112880.0,112870.0,0.0014]
[1755823812489,4.93222175,112880.0,112870.0,0.00452]
[1755823812902,4.93222175,112880.0,112870.0,0.00659]
[1755823813110,4.93222175,112880.0,112870.0,0.0014]
[1755823814650,4.93222175,112880.0,112870.0,0.00659]
[1755823816639,4.93222175,112880.0,112870.0,0.0014]
[1755823817721,4.93228023,112880.0,112870.0,0.0014]
[1755823818136,4.95622372,112880.0,112870.0,0.0014]
[1755823819032,4.95724372,112880.0,112870.0,0.0014]
[1755823819455,4.95622372,112880.0,112870.0,0.0014]
[1755823819936,5.13340302,112880.0,112870.0,0.0014]
[1755823821043,5.62202092,112880.0,112860.0,0.00336]
[1755823821259,4.96763371,112870.0,112860.0,0.0004]
[1755823821475,5.68545422,112870.0,112850.0,0.00336]
[1755823821687,3.17589587,112860.0,112850.0,0.00336]
[1755823821900,3.22787188,112860.0,112850.0,0.00534]
[1755823822111,4.95144972,112860.0,112850.0,0.00534]
[1755823822544,4.95144972,112860.0,112850.0,0.00582383]
[1755823823180,4.95244972,112860.0,112850.0,0.00682383]
[1755823823986,4.71737723,112860.0,112850.0,0.00682383]
[1755823824194,4.71837723,112860.0,112850.0,0.00682383]
[1755823824526,4.71838448,112860.0,112850.0,0.00682383]
[1755823824734,4.7322574,112860.0,112850.0,0.00682383]
[1755823824955,4.7322574,112860.0,112850.0,0.00188383]
[1755823826283,4.7322574,112860.0,112850.0,0.00484383]
[1755823826706,4.7371014,112860.0,112850.0,0.00188383]
[1755823826961,4.70592669,112860.0,112850.0,0.00484383]
[1755823827164,4.73711109,112860.0,112850.0,0.00484383]
[1755823827394,4.72879525,112860.0,112850.0,0.00484383]
[1755823827621,4.73710998,112860.0,112850.0,0.00484383]
[1755823828878,4.73710998,112860.0,112850.0,0.00682383]
[1755823830144,4.73710825,112860.0,112850.0,0.00682383]
[1755823831825,4.58766825,112860.0,112850.0,0.00682383]
[1755823832058,4.58603825,112860.0,112850.0,0.00682383]
[1755823832267,3.71569764,112860.0,112850.0,0.00682383]
[1755823832911,4.73547825,112860.0,112850.0,0.00682383]
[1755823833122,3.56002076,112860.0,112850.0,0.00682383]
[1755823833335,4.73547482,112860.0,112850.0,0.00682383]
[1755823834761,4.73547241,112860.0,112850.0,0.00682383]
[1755823834973,4.73547239,112860.0,112850.0,0.00682383]
[1755823835208,1.22713721,112860.0,112850.0,0.00682383]
[1755823835417,1.22717721,112860.0,112850.0,0.00682383]
[1755823836247,1.20431208,112860.0,112850.0,0.00682383]
[1755823836474,1.07768641,112860.0,112850.0,0.00682383]
[1755823836686,1.22716641,112860.0,112850.0,0.00682383]
[1755823836887,1.2271666,112860.0,112850.0,0.00682383]
[1755823837296,1.7271666,112860.0,112850.0,0.00682383]
[1755823838686,1.55850805,112860.0,112850.0,0.00682383]
[1755823838901,1.53565353,112860.0,112850.0,0.00682383]
[1755823839334,1.68513353,112860.0,112850.0,0.00682383]
[1755823840913,1.68513353,112860.0,112850.0,0.01404783]
[1755823841371,1.19572666,112860.0,112850.0,0.03149685]
[1755823841580,1.33129374,112860.0,112850.0,0.03149685]
[1755823842219,0.83029374,112860.0,112850.0,0.03149685]
[1755823842493,0.82970018,112860.0,112850.0,0.03049685]
[1755823842923,0.83070018,112860.0,112850.0,0.03449685]
[1755823843148,0.83170018,112860.0,112850.0,0.03449685]
[1755823843583,0.68226018,112860.0,112850.0,0.03449685]
[1755823843806,0.83166018,112860.0,112850.0,0.03449685]
[1755823844210,0.84553045,112860.0,112850.0,0.03449685]
[1755823844418,0.84453045,112860.0,112850.0,0.03449685]
[1755823844743,0.84553045,112860.0,112850.0,0.03549685]
[1755823844997,0.69613045,112860.0,112850.0,0.03549685]
[1755823845216,0.84553045,112860.0,112850.0,0.03549685]
[1755823846327,0.84549045,112860.0,112850.0,0.03549685]
[1755823852563,0.84712045,112860.0,112850.0,0.01310783]
[1755823852788,0.84712045,112860.0,112850.0,0.00588383]
[1755823853007,1.17440027,112860.0,112850.0,0.00588383]
[1755823854373,1.18827232,112860.0,112850.0,0.00588383]
[1755823855063,0.84814223,112860.0,112850.0,0.00588383]
[1755823855272,0.84712223,112860.0,112850.0,0.00588383]
[1755823855690,1.18725232,112860.0,112850.0,0.00588383]
[1755823856115,1.18827232,112860.0,112850.0,0.00588383]
[1755823858131,1.18725232,112860.0,112850.0,0.00588383]
[1755823858333,1.03789232,112860.0,112850.0,0.00588383]
[1755823858537,1.18717232,112860.0,112850.0,0.00588383]
[1755823860751,0.69613223,112860.0,112850.0,0.01094383]
[1755823861184,0.84537223,112860.0,112850.0,0.01094383]
[1755823861639,0.84574223,112860.0,112850.0,0.01094383]
[1755823862546,0.84537223,112860.0,112850.0,0.01094383]
[1755823863811,0.69613223,112860.0,112850.0,0.01094383]
[1755823864021,0.69650223,112860.0,112850.0,0.01094383]
[1755823864231,0.84578223,112860.0,112850.0,0.01094383]
[1755823865068,0.69650223,112860.0,112850.0,0.01094383]
[1755823865280,0.84561223,112860.0,112850.0,0.01094383]
[1755823865624,0.69613223,112860.0,112850.0,0.01094383]
[1755823865842,0.84561223,112860.0,112850.0,0.01094383]
[1755823866059,0.69613223,112860.0,112850.0,0.01094383]
[1755823866263,0.84598223,112860.0,112850.0,0.01094383]
[1755823868068,0.84561223,112860.0,112850.0,0.01094383]
[1755823868492,0.84724223,112860.0,112850.0,0.01094383]
[1755823870488,0.84561223,112860.0,112850.0,0.01094383]
[1755823872858,0.84722223,112860.0,112850.0,0.01094383]
[1755823873718,0.60588639,112860.0,112850.0,0.01094383]
[1755823873926,0.50509214,112860.0,112850.0,0.01094383]
[1755823874157,0.84522223,112860.0,112850.0,0.01094383]
[1755823878414,0.16496205,112860.0,112850.0,0.01094383]
[1755823878617,1.68563639,112860.0,112850.0,0.01094383]
[1755823878822,1.18563639,112860.0,112850.0,0.01094383]
[1755823879443,1.18563639,112860.0,112850.0,0.00588383]
[1755823879654,1.18547639,112860.0,112850.0,0.00588383]
[1755823879870,1.18547639,112860.0,112850.0,0.01091383]
[1755823880746,1.25367639,112860.0,112850.0,0.01091383]
[1755823880957,1.25206639,112860.0,112850.0,0.01091383]
[1755823882422,1.28537003,112860.0,112850.0,0.01091383]
[1755823882922,0.26469569,112860.0,112850.0,0.01091383]
[1755823883124,1.28537013,112860.0,112850.0,0.01091383]
[1755823883329,1.29161494,112860.0,112850.0,0.01091383]
[1755823883675,1.31079912,112860.0,112850.0,0.01091383]
[1755823884295,1.16147912,112860.0,112850.0,0.01091383]
[1755823884770,0.92841343,112860.0,112850.0,0.01091383]
[1755823885205,0.91454138,112860.0,112850.0,0.01091383]
[1755823885408,0.92841253,112860.0,112850.0,0.01091383]
[1755823886032,1.42841253,112860.0,112850.0,0.01091383]
[1755823886445,0.74796297,112860.0,112850.0,0.01091383]
[1755823886649,1.42841253,112860.0,112850.0,0.01091383]
[1755823888271,1.27917253,112860.0,112850.0,0.01312916]
[1755823888482,1.42837253,112860.0,112850.0,0.01312916]
[1755823889298,1.27917253,112860.0,112850.0,0.01312916]
[1755823889475,1.42837253,112860.0,112850.0,0.01312916]
[1755823889879,1.42837253,112860.0,112850.0,0.03978416]
[1755823890083,0.74792297,112860.0,112850.0,0.07047258]
[1755823890285,1.42837253,112860.0,112850.0,0.07047258]
[1755823891063,1.27917253,112860.0,112850.0,0.07047258]
[1755823891266,1.42837253,112860.0,112850.0,0.08570627]
[1755823892057,0.92837253,112860.0,112850.0,0.08570627]
[1755823892428,0.92837253,112860.0,112850.0,0.32171785]
[1755823893688,0.77917253,112860.0,112850.0,0.32171785]
[1755823893904,0.92833253,112860.0,112850.0,0.32171785]
[1755823896262,0.24788297,112860.0,112850.0,0.32171785]
[1755823896487,0.92833253,112860.0,112850.0,0.32171785]
[1755823896698,0.92829253,112860.0,112850.0,0.35392964]
[1755823897149,0.77917253,112860.0,112850.0,0.35392964]
[1755823897364,0.92837253,112860.0,112850.0,0.35392964]
[1755823898205,0.24792297,112860.0,112850.0,0.35392964]
[1755823898404,0.92833253,112860.0,112850.0,0.35392964]
[1755823898662,0.71097253,112860.0,112850.0,0.35392964]
[1755823898874,0.86013253,112860.0,112850.0,0.35392964]
[1755823900200,0.86013253,112860.0,112850.0,0.32171785]
[1755823900343,0.51976148,112860.0,112850.0,0.32171785]
[1755823900776,0.85983999,112860.0,112850.0,0.32171785]
[1755823908326,0.17968297,112860.0,112850.0,0.32171785]
[1755823908576,0.85983999,112860.0,112850.0,0.32171785]
[1755823908868,0.85983999,112860.0,112850.0,0.35392964]
[1755823910841,0.71067999,112860.0,112850.0,0.35392964]
[1755823911071,0.85971999,112860.0,112850.0,0.35392964]
[1755823913492,0.85971999,112860.0,112850.0,0.32171785]
[1755823917488,0.86134999,112860.0,112850.0,0.32171785]
[1755823918443,0.85971999,112860.0,112850.0,0.32171785]
[1755823920159,0.52800309,112860.0,112850.0,0.32171785]
[1755823920360,0.68022944,112860.0,112850.0,0.32171785]
[1755823920568,1.02197416,112860.0,112850.0,0.35392964]
[1755823920802,1.02197416,112860.0,112850.0,0.34889964]
[1755823921037,0.68185944,112860.0,112850.0,0.34889964]
[1755823921394,0.83089944,112860.0,112850.0,0.34889964]
[1755823921851,0.83089944,112860.0,112850.0,0.35191964]
[1755823922695,1.17203416,112860.0,112850.0,0.29923883]
[1755823922903,1.17203416,112860.0,112850.0,0.27258383]
[1755823923960,1.1859054,112860.0,112850.0,0.27258383]
[1755823927181,1.1859054,112860.0,112850.0,0.00588383]
[1755823932076,2.20624956,112860.0,112850.0,0.00588383]
[1755823932340,4.68164956,112860.0,112850.0,0.00588383]
[1755823932557,4.68753356,112860.0,112850.0,0.00588383]
[1755823937808,3.6671894,112860.0,112850.0,0.00588383]
[1755823938750,4.68753356,112860.0,112850.0,0.00588383]
[1755823938962,4.67366232,112860.0,112850.0,0.00588383]
[1755823939172,3.65331816,112860.0,112850.0,0.00588383]
[1755823939781,4.67366232,112860.0,112850.0,0.00588383]
[1755823942478,4.6875347,112860.0,112850.0,0.00588383]
[1755823943570,2.64684638,112860.0,112850.0,0.00588383]
[1755823943776,4.6875347,112860.0,112850.0,0.00588383]
[1755823946833,4.6865147,112860.0,112850.0,0.00588383]
[1755823949186,4.70938467,112860.0,112850.0,0.00588383]
[1755823949391,4.72854645,112860.0,112850.0,0.00588383]
[1755823950371,4.72854672,112860.0,112850.0,0.00588383]
[1755823951420,3.70820256,112860.0,112850.0,0.00588383]
[1755823952147,3.70820256,112860.0,112850.0,0.01083383]
[1755823953236,3.71652395,112860.0,112850.0,0.01083383]
[1755823954184,3.56585395,112860.0,112850.0,0.01083383]
[1755823954370,3.71493395,112860.0,112850.0,0.01083383]
[1755823955562,3.71656395,112860.0,112850.0,0.01083383]
[1755823956542,3.70826675,112860.0,112850.0,0.01083383]
[1755823956757,3.716592,112860.0,112850.0,0.01083383]
[1755823957497,3.71659233,112860.0,112850.0,0.01083383]
[1755823957809,3.56588233,112860.0,112850.0,0.01083383]
[1755823958023,3.70907833,112860.0,112850.0,0.01083383]
[1755823959605,3.70283442,112860.0,112850.0,0.01083383]
[1755823959809,3.70907862,112860.0,112850.0,0.01083383]
[1755823962729,3.70908017,112860.0,112850.0,0.01083383]
[1755823963743,3.70945017,112860.0,112850.0,0.01083383]
[1755823965922,3.70945179,112860.0,112850.0,0.01083383]
[1755823968881,3.70945179,112860.0,112850.0,0.00883383]
[1755823969083,3.70945256,112860.0,112850.0,0.00883383]
[1755823969516,3.70945256,112860.0,112850.0,0.01098383]
[1755823972043,3.70945506,112860.0,112850.0,0.01098383]
[1755823973235,3.70945512,112860.0,112850.0,0.01098383]
[1755823975055,3.67822832,112860.0,112850.0,0.01098383]
[1755823975258,3.70945641,112860.0,112850.0,0.01098383]
[1755823977430,3.70945641,112860.0,112850.0,0.00588383]
[1755823977633,4.72980057,112860.0,112850.0,0.00588383]
[1755823977764,4.73082057,112860.0,112850.0,0.00588383]
[1755823977996,4.75646057,112860.0,112850.0,0.00588383]
[1755823978343,4.75646257,112860.0,112850.0,0.00588383]
[1755823978761,4.75646257,112860.0,112850.0,0.00188383]
[1755823979201,3.73611841,112860.0,112850.0,0.00188383]
[1755823979688,3.73714485,112860.0,112850.0,0.00388383]
[1755823979900,3.73714484,112860.0,112850.0,0.00604383]
[1755823980101,3.73714484,112860.0,112850.0,0.00819383]
[1755823980380,3.73814484,112860.0,112850.0,0.00919383]
[1755823980583,3.73777484,112860.0,112850.0,0.00919383]
[1755823980788,3.71111484,112860.0,112850.0,0.00919383]
[1755823981169,3.72030784,112860.0,112850.0,0.00919383]
[1755823983602,3.70573574,112860.0,112850.0,0.00919383]
[1755823983967,3.72192147,112860.0,112850.0,0.00388383]
[1755823984161,3.72192149,112860.0,112850.0,0.00388383]
[1755823984415,3.7219233,112860.0,112850.0,0.00388383]
[1755823986826,3.72192342,112860.0,112850.0,0.00388383]
[1755823989785,3.70526544,112860.0,112850.0,0.00388383]
[1755823989995,3.72192354,112860.0,112850.0,0.00388383]
[1755823992942,3.70734773,112860.0,112850.0,0.00388383]
[1755823993228,3.73858178,112860.0,112850.0,0.00388383]
[1755823993450,2.71823762,112860.0,112850.0,0.00388383]
[1755823993662,3.73858178,112860.0,112850.0,0.00388383]
[1755823995577,3.73960178,112860.0,112850.0,0.00388383]
[1755823995774,3.73858178,112860.0,112850.0,0.00388383]
[1755823997018,4.75267913,112860.0,112850.0,0.00388383]
[1755823997169,4.75892575,112860.0,112850.0,0.00388383]
[1755823998390,3.73858159,112860.0,112850.0,0.00388383]
[1755823999176,3.73858105,112860.0,112850.0,0.00388383]
[1755823999925,4.75892521,112860.0,112850.0,0.00388383]
[1755824000875,3.73858105,112860.0,112850.0,0.00388383]
[1755824001846,3.7385794,112860.0,112850.0,0.00388383]
[1755824002059,3.73233278,112860.0,112850.0,0.00388383]
[1755824002265,3.73857855,112860.0,112850.0,0.00388383]
[1755824002849,3.73857853,112860.0,112850.0,0.00388383]
[1755824003941,3.49494453,112860.0,112850.0,0.00388383]
[1755824005382,3.49494417,112860.0,112850.0,0.00388383]
[1755824006133,4.51528833,112860.0,112850.0,0.00701383]
[1755824007410,3.49494417,112860.0,112850.0,0.00701383]
[1755824010354,2.47460001,112860.0,112850.0,0.00908383]
[1755824010564,3.49333417,112860.0,112850.0,0.00908383]
[1755824010981,3.49329417,112860.0,112850.0,0.00908383]
[1755824011573,3.47039195,112860.0,112850.0,0.00908383]
[1755824011778,3.49329385,112860.0,112850.0,0.00908383]
[1755824012302,3.4932939,112860.0,112850.0,0.00908383]
[1755824013712,3.47410387,112860.0,112850.0,0.00908383]
[1755824013907,3.4932922,112860.0,112850.0,0.00908383]
[1755824016131,3.4949222,112860.0,112850.0,0.00908383]
[1755824020005,3.5631222,112860.0,112850.0,0.00908383]
[1755824020206,3.37966066,112860.0,112850.0,0.00908383]
[1755824020413,3.40261592,112860.0,112850.0,0.00908383]
[1755824020823,3.36375955,112860.0,112850.0,0.00908383]
[1755824020995,3.37208903,112860.0,112850.0,0.00908383]
[1755824021400,3.37208911,112860.0,112850.0,0.00908383]
[1755824022237,3.20743094,112860.0,112850.0,0.00908383]
[1755824022447,3.37208911,112860.0,112850.0,0.00701383]
[1755824023850,3.38596152,112860.0,112850.0,0.00701383]
[1755824026409,3.38596152,112860.0,112850.0,0.00908383]
[1755824028583,3.36677319,112860.0,112850.0,0.00908383]
[1755824028786,3.38596296,112860.0,112850.0,0.00908383]
[1755824030154,3.37763402,112860.0,112850.0,0.00908383]
[1755824030357,3.38596293,112860.0,112850.0,0.00908383]
[1755824030848,3.23529293,112860.0,112850.0,0.00908383]
[1755824031016,3.2352929,112860.0,112850.0,0.00908383]
[1755824031189,1.2942649,112860.0,112850.0,0.00908383]
[1755824032179,1.31092194,112860.0,112850.0,0.00908383]
[1755824032618,1.16192194,112860.0,112850.0,0.00908383]
[1755824032861,1.31092194,112860.0,112850.0,0.00908383]
[1755824033440,0.82180722,112860.0,112850.0,0.00908383]
[1755824033641,1.30183894,112860.0,112850.0,0.00908383]
[1755824034044,1.28796653,112860.0,112850.0,0.00908383]
[1755824035568,1.30183846,112860.0,112850.0,0.00908383]
[1755824036779,1.80183846,112860.0,112850.0,0.00908383]
[1755824037527,1.80183846,112860.0,112850.0,0.00408383]
[1755824038418,1.79350955,112860.0,112850.0,0.00408383]
[1755824038828,1.79548955,112860.0,112850.0,0.00408383]
[1755824039391,1.77060586,112860.0,112850.0,0.00408383]
[1755824039622,1.7768491,112860.0,112850.0,0.00408383]
[1755824039824,0.75650494,112860.0,112850.0,0.00408383]
[1755824040053,1.7768491,112860.0,112850.0,0.00408383]
[1755824041759,1.2768491,112860.0,112850.0,0.00408383]
[1755824044778,1.2788291,112860.0,112850.0,0.00408383]
[1755824045626,1.1298291,112860.0,112850.0,0.00408383]
[1755824045861,1.2788291,112860.0,112850.0,0.00408383]
[1755824046286,1.2788291,112860.0,112850.0,0.00201383]
[1755824046918,1.2788291,112860.0,112840.0,0.012554]
[1755824047123,0.82922944,112850.0,112840.0,0.012554]
[1755824047370,0.82922944,112850.0,112840.0,0.014604]
[1755824048198,0.82922944,112850.0,112840.0,0.015604]
[1755824048434,0.6440955,112850.0,112840.0,0.015604]
[1755824048863,0.4950955,112850.0,112840.0,0.0438744]
[1755824049086,0.82922944,112850.0,112840.0,0.0438744]
[1755824049464,0.83022944,112850.0,112840.0,0.0478744]
[1755824049683,0.83022944,112850.0,112840.0,0.0468744]
[1755824049805,0.83122944,112850.0,112840.0,0.0478744]
[1755824052872,0.002,112850.0,112840.0,0.05008992]
[1755824053082,0.49107472,112850.0,112840.0,0.05008992]
[1755824053237,0.83118944,112850.0,112840.0,0.05008992]
[1755824054116,0.34211472,112850.0,112840.0,0.02181952]
[1755824054322,0.49107472,112850.0,112840.0,0.02181952]
[1755824054883,0.49107472,112850.0,112840.0,0.28851952]
[1755824055110,0.49107472,112850.0,112840.0,0.286304]
[1755824055412,0.15096,112850.0,112840.0,0.286304]
[1755824055715,0.49107472,112850.0,112840.0,0.286304]
[1755824055883,0.49107472,112850.0,112840.0,0.3149744]
[1755824056317,0.34211472,112850.0,112840.0,0.3149744]
[1755824056519,0.49107472,112850.0,112840.0,0.3149744]
[1755824058377,0.34211472,112850.0,112840.0,0.3149744]
[1755824058713,0.49107472,112850.0,112840.0,0.3149744]
[1755824060954,0.83118944,112850.0,112840.0,0.3149744]
[1755824063733,0.49107472,112850.0,112840.0,0.3149744]
[1755824064570,0.83118944,112850.0,112840.0,0.3149744]
[1755824065210,0.83316944,112850.0,112840.0,0.286304]
[1755824065607,0.83316944,112850.0,112840.0,0.281184]
[1755824066694,0.83316944,112850.0,112840.0,0.014484]
[1755824067338,0.46265797,112850.0,112840.0,0.014484]
[1755824068344,0.61161797,112850.0,112840.0,0.014484]
[1755824070033,0.61375797,112850.0,112840.0,0.014484]
[1755824070371,0.61161797,112850.0,112840.0,0.014484]
[1755824070805,0.61375797,112850.0,112840.0,0.0054]
[1755824075025,0.62763075,112850.0,112840.0,0.0054]
[1755824076007,0.62549075,112850.0,112840.0,0.0054]
[1755824076792,0.16481278,112850.0,112840.0,0.0054]
[1755824076993,0.84504222,112850.0,112840.0,0.0054]
[1755824077239,0.84504222,112850.0,112840.0,0.01073]
[1755824080548,0.84500222,112850.0,112840.0,0.01073]
[1755824081101,0.84500222,112850.0,112840.0,0.0054]
[1755824081987,0.69608222,112850.0,112840.0,0.0054]
[1755824082193,0.84500222,112850.0,112840.0,0.0054]
[1755824082604,0.69608222,112850.0,112840.0,0.0054]
[1755824082813,0.84500222,112850.0,112840.0,0.0054]
[1755824085370,0.84500222,112850.0,112840.0,0.01073]
[1755824094488,0.84500222,112850.0,112840.0,0.00864]
[1755824094663,0.84500222,112850.0,112840.0,0.0054]
[1755824095682,0.84714222,112850.0,112840.0,0.0054]
[1755824096094,0.84500222,112850.0,112840.0,0.0054]
[1755824097373,0.84500222,112850.0,112840.0,0.0085]
[1755824097374,0.48903472,112850.0,112840.0,0.0085]
[1755824097600,0.84327204,112850.0,112840.0,0.0085]
[1755824098772,0.84327204,112850.0,112840.0,0.01055]
[1755824099005,0.84302204,112850.0,112840.0,0.01055]
[1755824099213,0.82914944,112850.0,112840.0,0.01055]
[1755824099603,0.82939944,112850.0,112840.0,0.01055]
[1755824100276,0.68022944,112850.0,112840.0,0.01055]
[1755824100488,0.82914944,112850.0,112840.0,0.01055]
[1755824101491,0.82939944,112850.0,112840.0,0.0054]
[1755824102565,1.16951416,112850.0,112840.0,0.0054]
[1755824104958,1.18338729,112850.0,112840.0,0.0054]
[1755824106245,1.18338729,112850.0,112840.0,1e-08]
[1755824106709,0.84327257,112850.0,112840.0,1e-08]
[1755824107825,0.89365352,112850.0,112840.0,1e-08]
[1755824108230,0.87700984,112850.0,112840.0,1e-08]
[1755824110484,3.30715256,112850.0,112840.0,1e-08]
[1755824110705,3.32379124,112850.0,112840.0,1e-08]
[1755824110921,3.32395124,112850.0,112840.0,1e-08]